bitfinex-derivatives/quotes_BNBF0:USTF0_20250630
["timestamp","ask_amount","ask_price","bid_price","bid_amount"]
[1751296122852,0.26652575,653.43,652.7,1.08211844]
[1751296123054,0.26652575,653.43,652.71,1.08211844]
[1751296123356,0.26652575,653.43,652.72,1.08211844]
[1751296123655,0.26652575,653.43,652.46,1.14340016]
[1751296123856,0.26652575,653.43,652.47,1.08201817]
[1751296124052,0.26652575,653.43,652.48,1.08201817]
[1751296124251,0.26652575,653.43,652.49,1.08201817]
[1751296124453,0.26652575,653.43,652.5,1.08201817]
[1751296124655,0.26652575,653.43,652.51,1.08201817]
[1751296124852,0.26652575,653.43,652.52,1.08201817]
[1751296125057,0.26652575,653.43,652.53,1.08201817]
[1751296125357,0.26652575,653.43,652.54,1.08201817]
[1751296125558,0.26652575,653.43,652.55,1.08201817]
[1751296125753,0.26652575,653.43,652.56,1.08201817]
[1751296125956,0.26652575,653.43,652.57,1.08201817]
[1751296126154,0.26652575,653.43,652.58,1.08201817]
[1751296126357,0.26652575,653.43,652.59,1.08201817]
[1751296126658,0.26652575,653.43,652.6,1.08201817]
[1751296126858,0.26652575,653.43,652.61,1.08201817]
[1751296127056,0.26652575,653.43,652.62,1.08201817]
[1751296127258,0.26652575,653.43,652.63,1.08201817]
[1751296127458,0.26652575,653.43,652.64,1.08201817]
[1751296127657,0.26652575,653.43,652.65,1.08201817]
[1751296127860,0.26652575,653.43,652.66,1.08201817]
[1751296128056,0.26652575,653.43,652.67,1.08201817]
[1751296128356,0.26652575,653.43,652.68,1.08201817]
[1751296128557,0.26652575,653.43,652.69,1.08201817]
[1751296128760,0.26652575,653.43,652.7,1.08201817]
[1751296128956,0.26652575,653.43,652.71,1.08201817]
[1751296129161,0.26652575,653.43,652.72,1.08201817]
[1751296129358,0.26652575,653.43,652.41,1.14340016]
[1751296129662,0.26652575,653.43,652.42,1.08279043]
[1751296129861,0.26652575,653.43,652.43,1.08279043]
[1751296130059,0.26652575,653.43,652.44,1.08279043]
[1751296130261,0.26652575,653.43,652.45,1.08279043]
[1751296130563,0.26652575,653.43,652.46,1.08279043]
[1751296130762,0.26652575,653.43,652.47,1.08279043]
[1751296131062,0.26652575,653.43,652.48,1.08279043]
[1751296131262,0.26652575,653.43,652.49,1.08279043]
[1751296131462,0.26652575,653.43,652.4,1.14340016]
[1751296131463,0.26652575,653.43,652.5,1.08279043]
[1751296131661,0.26652575,653.43,652.51,1.08279043]
[1751296131861,0.26652575,653.43,652.52,1.08279043]
[1751296132060,0.26652575,653.43,652.53,1.08279043]
[1751296132260,0.26652575,653.43,652.54,1.08279043]
[1751296132464,0.26652575,653.43,652.55,1.08279043]
[1751296132659,0.26652575,653.43,652.56,1.08279043]
[1751296132862,0.26652575,653.43,652.57,1.08279043]
[1751296133066,0.26652575,653.43,652.58,1.08279043]
[1751296133260,0.26652575,653.43,652.59,1.08279043]
[1751296133561,0.26652575,653.43,652.6,1.08279043]
[1751296133761,0.26652575,653.43,652.61,1.08279043]
[1751296133961,0.26652575,653.43,652.62,1.08279043]
[1751296134160,0.26652575,653.43,652.63,1.08279043]
[1751296134360,0.26652575,653.43,652.64,1.08279043]
[1751296134665,0.26652575,653.43,652.65,1.08279043]
[1751296134861,0.26652575,653.43,652.66,1.08279043]
[1751296135065,0.26652575,653.43,652.67,1.08279043]
[1751296135260,0.26652575,653.43,652.42,1.14340016]
[1751296135261,0.26652575,653.43,652.68,1.08279043]
[1751296135467,0.26652575,653.43,652.69,1.08279043]
[1751296135665,0.26652575,653.43,652.7,1.08279043]
[1751296135862,0.26652575,653.43,652.71,1.08279043]
[1751296136065,0.26652575,653.43,652.72,1.08279043]
[1751296136366,0.26652575,653.43,652.73,1.08279043]
[1751296136561,0.26652575,653.43,652.47,1.14340016]
[1751296136867,0.26652575,653.43,652.48,1.07550557]
[1751296137066,0.26652575,653.43,652.49,1.07550557]
[1751296137267,0.26652575,653.43,652.5,1.07550557]
[1751296137462,0.26652575,653.43,652.51,1.07550557]
[1751296137663,0.26652575,653.43,652.52,1.07550557]
[1751296137867,0.26652575,653.43,652.53,1.07550557]
[1751296138066,0.26652575,653.43,652.54,1.07550557]
[1751296138362,0.26652575,653.43,652.55,1.07550557]
[1751296138567,0.26652575,653.43,652.56,1.07550557]
[1751296138863,0.26652575,653.43,652.57,1.07550557]
[1751296139066,0.26652575,653.43,652.58,1.07550557]
[1751296139263,0.26652575,653.43,652.59,1.07550557]
[1751296139567,0.26652575,653.43,652.6,1.07550557]
[1751296139767,0.26652575,653.43,652.61,1.07550557]
[1751296139964,0.26652575,653.43,652.62,1.07550557]
[1751296140164,0.26652575,653.43,652.63,1.07550557]
[1751296140467,0.26652575,653.43,652.64,1.07550557]
[1751296140663,0.26652575,653.43,652.65,1.07550557]
[1751296140863,0.26652575,653.43,652.66,1.07550557]
[1751296141068,0.26652575,653.43,652.67,1.07550557]
[1751296141269,0.26652575,653.43,652.68,1.07550557]
[1751296141468,0.26652575,653.43,652.69,1.07550557]
[1751296141769,0.26652575,653.43,652.7,1.07550557]
[1751296141969,0.26652575,653.43,652.34,1.14340016]
[1751296142165,0.26652575,653.43,652.35,1.07533423]
[1751296142464,0.26652575,653.43,652.34,1.14340016]
[1751296142465,0.26652575,653.43,652.36,1.07533423]
[1751296142769,0.26652575,653.43,652.37,1.07533423]
[1751296142973,0.26652575,653.43,652.38,1.07533423]
[1751296143270,0.26652575,653.43,652.39,1.07533423]
[1751296143471,0.26652575,653.43,652.4,1.07533423]
[1751296143768,0.26652575,653.43,652.41,1.07533423]
[1751296144066,0.26652575,653.43,652.42,1.07533423]
[1751296144268,0.26652575,653.43,652.43,1.07533423]
[1751296144569,0.26652575,653.43,652.44,1.07533423]
[1751296144767,0.26652575,653.43,652.45,1.07533423]
[1751296144971,0.26652575,653.43,652.46,1.07533423]
[1751296145267,0.26652575,653.43,652.47,1.07533423]
[1751296145469,0.26652575,653.43,652.48,1.07533423]
[1751296145669,0.26652575,653.43,652.49,1.07533423]
[1751296145869,0.26652575,653.43,652.5,1.07533423]
[1751296146073,0.26652575,653.43,652.51,1.07533423]
[1751296146274,0.26652575,653.43,652.52,1.07533423]
[1751296146469,0.26652575,653.43,652.53,1.07533423]
[1751296146769,0.26652575,653.43,652.54,1.07533423]
[1751296146973,0.26652575,653.43,652.55,1.07533423]
[1751296147173,0.26652575,653.43,652.56,1.07533423]
[1751296147371,0.26652575,653.43,652.57,1.07533423]
[1751296147673,0.26652575,653.43,652.58,1.07533423]
[1751296147875,0.26652575,653.43,652.59,1.07533423]
[1751296148172,0.26652575,653.43,652.6,1.07533423]
[1751296148475,0.26652575,653.43,652.61,1.07533423]
[1751296148772,0.26652575,653.43,652.62,1.07533423]
[1751296148973,0.26652575,653.43,652.63,1.07533423]
[1751296149172,0.26652575,653.43,652.64,1.07533423]
[1751296149371,0.26652575,653.43,652.4,1.14340016]
[1751296149372,0.26652575,653.43,652.65,1.07533423]
[1751296149672,0.26652575,653.43,652.66,1.07533423]
[1751296149875,0.26652575,653.43,652.67,1.07533423]
[1751296150079,0.26652575,653.43,652.68,1.07533423]
[1751296150276,0.26652575,653.43,652.69,1.07533423]
[1751296150571,0.26652575,653.43,652.7,1.07533423]
[1751296150776,0.26652575,653.43,652.71,1.07533423]
[1751296151077,0.26652575,653.43,652.4,1.14340016]
[1751296151270,0.26652575,653.43,652.41,1.07545516]
[1751296151473,0.26652575,653.43,652.42,1.07545516]
[1751296151671,0.26652575,653.43,652.43,1.07545516]
[1751296151873,0.26652575,653.43,652.4,1.14340016]
[1751296151874,0.26652575,653.43,652.44,1.07545516]
[1751296152073,2.28206185,653.52,652.46,1.14340016]
[1751296152272,0.26647064,653.51,652.47,1.07545516]
[1751296152473,2.54853249,653.51,652.48,1.07545516]
[1751296152677,2.54853249,653.51,652.49,1.07545516]
[1751296152880,2.54853249,653.51,652.5,1.07545516]
[1751296153076,2.28206185,653.5,652.51,1.07545516]
[1751296153282,2.28206185,653.49,652.52,1.07545516]
[1751296153477,2.28206185,653.49,652.53,1.07545516]
[1751296153681,2.28206185,653.49,652.54,1.07545516]
[1751296153981,2.28206185,653.49,652.55,1.07545516]
[1751296154282,2.28206185,653.49,652.56,1.07545516]
[1751296154480,2.28206185,653.49,652.57,1.07545516]
[1751296154681,2.28206185,653.49,652.58,1.07545516]
[1751296154881,2.28206185,653.49,652.59,1.07545516]
[1751296155082,2.28206185,653.49,652.6,1.07545516]
[1751296155382,2.28206185,653.48,652.61,1.07545516]
[1751296155581,2.28206185,653.48,652.62,1.07545516]
[1751296155782,2.28206185,653.48,652.63,1.07545516]
[1751296155983,2.28206185,653.48,652.64,1.07545516]
[1751296156182,2.28206185,653.48,652.65,1.07545516]
[1751296156382,2.28206185,653.48,652.66,1.07545516]
[1751296156583,2.28206185,653.47,652.67,1.07545516]
[1751296156781,0.2664482,653.59,652.68,1.07545516]
[1751296156782,2.28206185,653.48,652.68,1.07545516]
[1751296156985,2.28206185,653.49,652.69,1.07545516]
[1751296157184,2.28206185,653.48,652.7,1.07545516]
[1751296157484,2.28206185,653.56,652.71,1.07545516]
[1751296157680,2.28206185,653.56,652.72,1.07545516]
[1751296157984,2.28206185,653.56,652.73,1.07545516]
[1751296158186,2.28206185,653.56,652.74,1.07545516]
[1751296158384,2.28206185,653.55,652.75,1.07545516]
[1751296158596,2.28206185,653.55,652.76,1.07545516]
[1751296158787,2.28206185,653.55,652.77,1.07545516]
[1751296158985,2.28206185,653.55,652.78,1.07545516]
[1751296159190,2.28206185,653.54,652.79,1.07545516]
[1751296159489,2.28206185,653.56,652.8,1.07612546]
[1751296159789,2.28206185,653.56,652.81,1.07612546]
[1751296159989,2.28206185,653.56,652.82,1.07612546]
[1751296160190,2.28206185,653.56,652.83,1.07612546]
[1751296160387,2.28206185,653.55,652.6,1.14340016]
[1751296160592,2.28206185,653.55,652.61,1.07642194]
[1751296160792,2.28206185,653.55,652.62,1.07642194]
[1751296161088,2.28206185,653.56,652.63,1.07642194]
[1751296161289,2.28206185,653.56,652.64,1.07642194]
[1751296161489,2.28206185,653.55,652.65,1.07642194]
[1751296161688,2.28206185,653.55,652.66,1.07642194]
[1751296161892,2.28206185,653.55,652.67,1.07642194]
[1751296162086,2.28206185,653.56,652.68,1.07642194]
[1751296162291,2.28206185,653.56,652.69,1.07642194]
[1751296162490,0.2664482,653.59,652.7,1.07642194]
[1751296162791,0.2664482,653.59,652.71,1.07642194]
[1751296162990,0.2664482,653.59,652.72,1.07642194]
[1751296163186,0.2664482,653.59,652.73,1.07642194]
[1751296163392,0.2664482,653.59,652.74,1.07642194]
[1751296163589,0.2664482,653.59,652.75,1.07642194]
[1751296163786,0.2664482,653.59,652.76,1.07642194]
[1751296163991,0.2664482,653.59,652.77,1.07642194]
[1751296164190,0.2664482,653.59,652.78,1.07642194]
[1751296164488,0.2664482,653.59,652.79,1.07642194]
[1751296164788,0.2664482,653.59,652.8,1.07642194]
[1751296164992,0.2664482,653.59,652.81,1.07642194]
[1751296165290,0.2664482,653.59,652.82,1.07642194]
[1751296165488,0.2664482,653.59,652.83,1.07642194]
[1751296165789,0.2664482,653.59,651.99,1.982]
[1751296165790,0.2664482,653.59,652.84,1.07642194]
[1751296165992,0.2664482,653.59,652.85,1.07642194]
[1751296166191,0.2664482,653.59,652.86,1.07642194]
[1751296166394,0.2664482,653.59,652.87,1.07642194]
[1751296166589,0.2664482,653.59,652.55,1.14340016]
[1751296166793,0.2664482,653.59,652.56,1.0766326]
[1751296167096,0.2664482,653.59,652.57,1.0766326]
[1751296167291,0.2664482,653.59,652.58,1.0766326]
[1751296167591,0.2664482,653.59,652.59,1.0766326]
[1751296167795,0.2664482,653.59,652.6,1.0766326]
[1751296168095,0.2664482,653.59,652.56,1.14340016]
[1751296168096,0.2664482,653.59,652.61,1.0766326]
[1751296168393,0.2664482,653.59,652.62,1.0766326]
[1751296168595,0.2664482,653.59,652.63,1.0766326]
[1751296168895,0.2664482,653.59,652.64,1.0766326]
[1751296169096,0.2664482,653.59,652.65,1.0766326]
[1751296169295,0.2664482,653.59,652.66,1.0766326]
[1751296169592,0.2664482,653.59,652.67,1.0766326]
[1751296169793,0.2664482,653.59,652.68,1.0766326]
[1751296169991,0.2664482,653.59,652.69,1.0766326]
[1751296170192,0.2664482,653.59,652.7,1.0766326]
[1751296170397,0.2664482,653.59,652.71,1.0766326]
[1751296170592,0.2664482,653.59,652.72,1.0766326]
[1751296170794,0.2664482,653.59,652.73,1.0766326]
[1751296170993,0.2664482,653.59,652.74,1.0766326]
[1751296171198,0.2664482,653.59,652.75,1.0766326]
[1751296171500,0.2664482,653.59,652.76,1.0766326]
[1751296171696,0.2664482,653.59,652.77,1.0766326]
[1751296171897,0.2664482,653.59,652.78,1.0766326]
[1751296172093,0.2664482,653.59,652.79,1.0766326]
[1751296172399,0.2664482,653.59,652.8,1.0766326]
[1751296172599,0.2664482,653.59,652.81,1.0766326]
[1751296172794,0.2664482,653.59,652.82,1.0766326]
[1751296172999,0.2664482,653.59,652.83,1.0766326]
[1751296173199,0.2664482,653.59,652.84,1.0766326]
[1751296173399,0.2664482,653.59,652.85,1.0766326]
[1751296173599,0.2664482,653.59,652.86,1.0766326]
[1751296173799,0.2664482,653.59,652.87,1.0766326]
[1751296174102,0.26636254,653.69,652.88,1.0766326]
[1751296174300,0.26636254,653.69,652.89,1.0766326]
[1751296174600,0.26636254,653.69,652.9,1.0766326]
[1751296174800,0.26636254,653.69,652.91,1.0766326]
[1751296175000,0.26636254,653.69,652.92,1.0766326]
[1751296175201,0.26636254,653.69,652.93,1.0766326]
[1751296175401,0.26636254,653.69,652.94,1.0766326]
[1751296175597,0.26636254,653.69,652.95,1.0766326]
[1751296175897,0.26636254,653.69,652.96,1.0766326]
[1751296176098,0.26636254,653.69,652.97,1.0766326]
[1751296176302,0.26636254,653.69,652.57,1.14340016]
[1751296176497,0.26636254,653.69,652.58,1.07697355]
[1751296176697,0.26636254,653.69,652.59,1.07697355]
[1751296176898,0.26636254,653.69,652.6,1.07697355]
[1751296177098,0.26636254,653.69,652.61,1.07697355]
[1751296177296,0.26636254,653.69,652.62,1.07697355]
[1751296177502,0.26636254,653.69,652.63,1.07697355]
[1751296177700,0.26636254,653.69,652.64,1.07697355]
[1751296177895,0.26636254,653.69,652.65,1.07697355]
[1751296178098,0.26636254,653.69,652.66,1.07697355]
[1751296178298,0.26636254,653.69,652.67,1.07697355]
[1751296178598,0.26636254,653.69,652.68,1.07697355]
[1751296178797,0.26636254,653.69,652.69,1.07697355]
[1751296179001,0.26636254,653.69,652.7,1.07697355]
[1751296179197,0.26636254,653.69,652.71,1.07697355]
[1751296179501,0.26636254,653.69,652.32,1.52838239]
[1751296179502,0.26636254,653.69,652.72,1.07697355]
[1751296179699,0.26636254,653.69,652.73,1.07697355]
[1751296179902,0.26636254,653.69,652.74,1.07697355]
[1751296180102,0.26636254,653.69,652.75,1.07697355]
[1751296180300,0.26636254,653.69,652.76,1.07697355]
[1751296180499,0.26636254,653.69,652.55,1.14340016]
[1751296180500,0.26636254,653.69,652.77,1.07697355]
[1751296180698,0.26636254,653.69,652.78,1.07697355]
[1751296180903,0.26636254,653.69,652.79,1.07697355]
[1751296181103,0.26636254,653.69,652.8,1.07697355]
[1751296181400,0.26636254,653.69,652.81,1.07697355]
[1751296181601,0.26636254,653.69,652.82,1.07697355]
[1751296181801,0.26636254,653.69,652.83,1.07697355]
[1751296182001,0.26636254,653.69,652.84,1.07697355]
[1751296182201,0.26636254,653.69,652.85,1.07697355]
[1751296182401,0.26636254,653.69,652.86,1.07697355]
[1751296182601,0.26636254,653.69,652.87,1.07697355]
[1751296182801,0.26636254,653.69,652.88,1.07697355]
[1751296183004,0.26636254,653.69,652.89,1.07697355]
[1751296183198,0.26636254,653.69,652.9,1.07697355]
[1751296183401,0.26636254,653.69,652.91,1.07697355]
[1751296183600,0.26636254,653.69,652.92,1.07697355]
[1751296183801,0.26636254,653.69,652.93,1.07697355]
[1751296184002,0.26636254,653.69,652.94,1.07697355]
[1751296184202,0.26636254,653.69,652.95,1.07697355]
[1751296184405,0.26636254,653.69,652.96,1.07697355]
[1751296184605,0.26636254,653.69,652.63,1.14340016]
[1751296184806,0.26636254,653.69,652.64,1.07660627]
[1751296185005,0.26636254,653.69,652.65,1.07660627]
[1751296185201,0.26636254,653.69,652.66,1.07660627]
[1751296185403,0.26636254,653.69,652.67,1.07660627]
[1751296185607,0.26636254,653.69,652.68,1.07660627]
[1751296185908,0.26636254,653.69,652.69,1.07660627]
[1751296186208,0.26636254,653.69,652.7,1.07660627]
[1751296186507,2.28206185,653.76,652.71,1.07660627]
[1751296186805,2.28206185,653.76,652.72,1.07660627]
[1751296187007,2.28206185,653.67,652.73,1.07660627]
[1751296187209,2.28206185,653.72,652.76,1.14340016]
[1751296187508,2.28206185,653.72,652.77,1.07660627]
[1751296187706,2.28206185,653.72,652.78,1.07660627]
[1751296187910,2.28206185,653.72,652.79,1.07660627]
[1751296188111,2.28206185,653.73,652.8,1.07660627]
[1751296188307,2.28206185,653.73,652.81,1.07660627]
[1751296188505,2.28206185,653.73,652.82,1.07660627]
[1751296188707,2.28206185,653.73,652.83,1.07660627]
[1751296188912,2.28206185,653.73,652.84,1.07660627]
[1751296189112,2.28206185,653.73,652.85,1.07660627]
[1751296189313,2.28206185,653.71,652.86,1.07660627]
[1751296189509,2.28206185,653.71,652.87,1.07660627]
[1751296189713,2.28206185,653.71,652.88,1.07660627]
[1751296189913,2.28206185,653.71,652.89,1.07660627]
[1751296190113,2.28206185,653.71,652.9,1.07660627]
[1751296190313,2.28206185,653.71,652.91,1.07660627]
[1751296190613,0.2663758,653.77,652.92,1.07660627]
[1751296190909,0.2663758,653.77,652.93,1.07660627]
[1751296191120,0.2663758,653.77,652.94,1.07660627]
[1751296191309,0.2663758,653.77,652.95,1.07660627]
[1751296191510,0.2663758,653.77,652.96,1.07660627]
[1751296191713,0.2663758,653.77,652.97,1.07660627]
[1751296191911,0.2663758,653.77,652.98,1.07660627]
[1751296192211,0.2663758,653.77,652.99,1.07660627]
[1751296192515,0.2663758,653.77,653.0,1.07660627]
[1751296192716,0.2663758,653.77,652.69,1.14340016]
[1751296192924,0.2663758,653.77,652.7,1.07583378]
[1751296193113,0.2663758,653.77,652.71,1.07583378]
[1751296193313,0.2663758,653.77,652.72,1.07583378]
[1751296193624,0.2663758,653.77,652.73,1.07583378]
[1751296193917,0.2663758,653.77,652.74,1.07583378]
[1751296194117,0.2663758,653.77,652.75,1.07583378]
[1751296194314,0.2663758,653.77,652.76,1.07583378]
[1751296194616,0.2663758,653.77,652.77,1.07583378]
[1751296194912,0.2663758,653.77,652.78,1.07583378]
[1751296195116,0.2663758,653.77,652.79,1.07583378]
[1751296195312,0.2663758,653.77,652.8,1.07583378]
[1751296195518,0.2663758,653.77,652.81,1.07583378]
[1751296195814,0.2663758,653.77,652.82,1.07583378]
[1751296196017,0.2663758,653.77,652.83,1.07583378]
[1751296196217,0.2663758,653.77,652.84,1.07583378]
[1751296196514,0.2663758,653.77,652.85,1.07583378]
[1751296196718,0.2663758,653.77,652.86,1.07583378]
[1751296197015,0.2663758,653.77,652.87,1.07583378]
[1751296197215,0.2663758,653.77,652.88,1.07583378]
[1751296197515,0.2663758,653.77,652.89,1.07583378]
[1751296197716,0.2663758,653.77,652.9,1.07583378]
[1751296197916,0.2663758,653.77,652.91,1.07583378]
[1751296198117,0.2663758,653.77,652.92,1.07583378]
[1751296198315,0.2663758,653.77,652.93,1.07583378]
[1751296198515,0.2663758,653.77,652.94,1.07583378]
[1751296198719,0.2663758,653.77,652.95,1.07583378]
[1751296198915,0.2663758,653.77,652.96,1.07583378]
[1751296199115,0.2663758,653.77,652.97,1.07583378]
[1751296199320,0.2663758,653.77,652.98,1.07583378]
[1751296199522,0.2663758,653.77,652.99,1.07583378]
[1751296199821,0.2663758,653.77,653.0,1.07583378]
[1751296200020,0.2663758,653.77,653.01,1.07583378]
[1751296200219,0.2663758,653.77,653.02,1.07583378]
[1751296200421,0.2663758,653.77,653.03,1.07583378]
[1751296200621,0.2663758,653.77,653.04,1.07583378]
[1751296200821,0.2663758,653.77,652.75,1.14340016]
[1751296201116,0.2663758,653.77,652.76,1.07536948]
[1751296201320,0.2663758,653.77,652.77,1.07536948]
[1751296201520,0.2663758,653.77,652.78,1.07536948]
[1751296201721,0.2663758,653.77,652.79,1.07536948]
[1751296201917,0.2663758,653.77,652.8,1.07536948]
[1751296202121,0.2663758,653.77,652.81,1.07536948]
[1751296202319,0.2663758,653.77,652.82,1.07536948]
[1751296202519,0.2663758,653.77,652.83,1.07536948]
[1751296202719,0.2663758,653.77,652.84,1.07536948]
[1751296202918,0.2663758,653.77,652.85,1.07536948]
[1751296203117,0.2663758,653.77,652.86,1.07536948]
[1751296203319,0.2663758,653.77,652.87,1.07536948]
[1751296203516,0.2663758,653.77,652.88,1.07536948]
[1751296203720,0.2663758,653.77,652.76,1.284]
[1751296203721,0.2663758,653.77,652.89,1.07536948]
[1751296203918,0.2663758,653.77,652.9,1.07536948]
[1751296204117,0.2663758,653.77,652.91,1.07536948]
[1751296204319,0.2663758,653.77,652.92,1.07536948]
[1751296204517,0.2663758,653.77,652.93,1.07536948]
[1751296204718,0.2663758,653.77,652.94,1.07536948]
[1751296204918,0.2663758,653.77,652.95,1.07536948]
[1751296205121,0.2663758,653.77,652.96,1.07536948]
[1751296205322,0.2663758,653.77,652.97,1.07536948]
[1751296205522,0.2663758,653.77,652.98,1.07536948]
[1751296205720,0.2663758,653.77,652.99,1.07536948]
[1751296205919,0.2663758,653.77,653.0,1.07536948]
[1751296206120,0.2663758,653.77,653.01,1.07536948]
[1751296206320,0.2663758,653.77,653.02,1.07536948]
[1751296206521,0.2663758,653.77,653.03,1.07536948]
[1751296206724,0.2663758,653.77,653.04,1.07536948]
[1751296207024,0.2663758,653.77,652.78,1.14340016]
[1751296207221,0.2663758,653.77,652.79,1.07573794]
[1751296207421,0.2663758,653.77,652.8,1.07573794]
[1751296207721,0.2663758,653.77,652.81,1.07573794]
[1751296207924,0.2663758,653.77,652.82,1.07573794]
[1751296208124,0.2663758,653.77,652.83,1.07573794]
[1751296208325,0.2663758,653.77,652.84,1.07573794]
[1751296208620,0.2663758,653.77,652.85,1.07573794]
[1751296208920,0.2663758,653.77,652.86,1.07573794]
[1751296209124,0.2663758,653.77,652.87,1.07573794]
[1751296209424,0.2663758,653.77,652.88,1.07573794]
[1751296209624,0.2663758,653.77,652.89,1.07573794]
[1751296209924,0.2663758,653.77,652.9,1.07573794]
[1751296210120,0.2663758,653.77,652.91,1.07573794]
[1751296210319,0.2663758,653.77,652.92,1.07573794]
[1751296210522,0.2663758,653.77,652.93,1.07573794]
[1751296210722,0.2663758,653.77,652.94,1.07573794]
[1751296210925,0.2663758,653.77,652.95,1.07573794]
[1751296211123,0.2663758,653.77,652.96,1.07573794]
[1751296211326,0.2663758,653.77,652.97,1.07573794]
[1751296211521,0.2663758,653.77,652.98,1.07573794]
[1751296211725,0.2663758,653.77,652.99,1.07573794]
[1751296211922,0.2663758,653.77,653.0,1.07573794]
[1751296212121,0.2663758,653.77,653.01,1.07573794]
[1751296212322,0.2663758,653.77,653.02,1.07573794]
[1751296212522,0.2663758,653.77,653.03,1.07573794]
[1751296212825,0.2663758,653.77,653.04,1.07573794]
[1751296213024,0.2663758,653.77,652.78,1.14340016]
[1751296213225,0.2663758,653.77,652.79,1.07651115]
[1751296213424,0.2663758,653.77,652.8,1.07651115]
[1751296213624,0.2663758,653.77,652.81,1.07651115]
[1751296213822,0.2663758,653.77,652.82,1.07651115]
[1751296214022,2.28206185,653.76,652.83,1.07651115]
[1751296214326,2.28206185,653.75,652.84,1.07651115]
[1751296214530,2.28206185,653.75,652.85,1.07651115]
[1751296214725,2.28206185,653.75,652.86,1.07651115]
[1751296214926,2.28206185,653.75,652.87,1.07651115]
[1751296215129,2.28206185,653.74,652.88,1.07651115]
[1751296215329,2.28206185,653.76,652.89,1.07651115]
[1751296215525,2.28206185,653.76,652.9,1.07651115]
[1751296215729,2.28206185,653.76,652.91,1.07651115]
[1751296216025,2.28206185,653.76,652.92,1.07651115]
[1751296216223,2.28206185,653.74,652.93,1.07651115]
[1751296216423,2.28206185,653.74,652.94,1.07651115]
[1751296216628,2.28206185,653.74,652.95,1.07651115]
[1751296216829,2.28206185,653.74,652.96,1.07651115]
[1751296217029,2.28206185,653.74,652.97,1.07651115]
[1751296217330,0.2663758,653.77,652.98,1.07651115]
[1751296217529,0.2663758,653.77,652.99,1.07651115]
[1751296217730,0.2663758,653.77,653.0,1.07651115]
[1751296217928,0.2663758,653.77,653.01,1.07651115]
[1751296218229,0.2663758,653.77,653.02,1.07651115]
[1751296218427,0.2663758,653.77,653.03,1.07651115]
[1751296218727,0.2663758,653.77,653.04,1.07651115]
[1751296218925,0.2663758,653.77,653.05,1.07651115]
[1751296219126,0.2663758,653.77,653.06,1.07651115]
[1751296219326,2.28206185,653.89,653.07,1.07651115]
[1751296219630,0.26630955,653.85,653.08,1.07651115]
[1751296219827,0.26630955,653.85,653.09,1.07651115]
[1751296220026,0.26630955,653.85,653.1,1.07651115]
[1751296220227,0.26630955,653.85,653.11,1.07651115]
[1751296220428,0.26630955,653.85,653.12,1.07651115]
[1751296220631,0.26630955,653.85,653.13,1.07651115]
[1751296220830,0.26630955,653.85,653.14,1.07651115]
[1751296221029,0.26630955,653.85,653.15,1.07651115]
[1751296221230,0.26630955,653.85,653.16,1.07651115]
[1751296221430,0.26630955,653.85,652.85,1.14340016]
[1751296221635,0.26630955,653.85,652.86,1.07663602]
[1751296221834,0.26630955,653.85,652.87,1.07663602]
[1751296222031,0.26630955,653.85,652.88,1.07663602]
[1751296222231,0.26630955,653.85,652.89,1.07663602]
[1751296222435,0.26630955,653.85,652.9,1.07663602]
[1751296222733,0.26630955,653.85,652.91,1.07663602]
[1751296222932,0.26630955,653.85,652.92,1.07663602]
[1751296223136,0.26630955,653.85,652.93,1.07663602]
[1751296223430,0.26630955,653.85,652.86,1.14340016]
[1751296223431,0.26630955,653.85,652.94,1.07663602]
[1751296223636,0.26630955,653.85,652.95,1.07663602]
[1751296223832,0.26630955,653.85,652.96,1.07663602]
[1751296224037,0.26630955,653.85,652.97,1.07663602]
[1751296224237,0.26630955,653.85,652.98,1.07663602]
[1751296224435,0.26630955,653.85,652.99,1.07663602]
[1751296224738,0.26630955,653.85,653.0,1.07663602]
[1751296224940,0.26630955,653.85,653.01,1.07663602]
[1751296225135,0.26630955,653.85,653.02,1.07663602]
[1751296225337,0.26630955,653.85,653.03,1.07663602]
[1751296225634,0.26630955,653.85,653.04,1.07663602]
[1751296225836,0.26630955,653.85,653.05,1.07663602]
[1751296226040,0.26630955,653.85,653.06,1.07663602]
[1751296226238,0.26630955,653.85,653.07,1.07663602]
[1751296226437,0.26630955,653.85,653.08,1.07663602]
[1751296226640,0.26630955,653.85,653.09,1.07663602]
[1751296226838,0.26630955,653.85,653.1,1.07663602]
[1751296227041,2.28206185,653.8,653.11,1.07663602]
[1751296227340,2.28206185,653.79,653.12,1.07663602]
[1751296227541,2.28206185,653.79,653.13,1.07663602]
[1751296227738,2.28206185,653.79,652.91,1.14340016]
[1751296227739,2.28206185,653.79,653.14,1.07663602]
[1751296227939,0.26630955,653.85,653.15,1.07663602]
[1751296228140,0.26630955,653.85,653.16,1.07663602]
[1751296228341,0.26630955,653.85,652.85,1.14340016]
[1751296228642,0.26630955,653.85,652.86,1.07687839]
[1751296228940,0.26630955,653.85,652.87,1.07687839]
[1751296229142,0.26630955,653.85,652.88,1.07687839]
[1751296229342,0.26630955,653.85,652.89,1.07687839]
[1751296229542,0.26630955,653.85,652.9,1.07687839]
[1751296229742,0.26630955,653.85,652.91,1.07687839]
[1751296229939,0.26630955,653.85,652.92,1.07687839]